bitfinex-derivatives/quotes_SOLF0:USTF0_20240906
["timestamp","ask_amount","ask_price","bid_price","bid_amount"]
[1725639970714,30.0,128.32,128.24,30.0]
[1725639970906,30.0,128.32,128.21,1.3655]
[1725639970907,42.30333085,128.31,128.22,30.0]
[1725639971211,12.30333085,128.31,128.24,30.0]
[1725639971513,30.0,128.33,128.24,30.0]
[1725639971514,12.30333085,128.3,128.24,30.0]
[1725639971714,1.3081,128.29,128.24,30.0]
[1725639972117,3.9003,128.27,128.24,30.0]
[1725639972411,30.0,128.28,128.07,7.814]
[1725639972619,30.0,128.28,128.17,30.0]
[1725639972620,31.37,128.26,128.17,30.0]
[1725639972920,31.37,128.26,128.16,30.0]
[1725639972921,30.0,128.24,128.16,30.0]
[1725639973119,12.28213693,128.23,128.16,30.0]
[1725639973317,33.93170882,128.24,128.16,30.0]
[1725639973515,12.27875108,128.23,128.17,3.91727409]
[1725639973813,12.27875108,128.23,128.14,30.0]
[1725639973814,30.0,128.22,128.14,30.0]
[1725639974010,42.27875108,128.21,128.14,3.81076918]
[1725639974209,3.9028,128.19,128.16,30.0]
[1725639974410,1.2953,128.21,128.16,30.0]
[1725639974922,3.9028,128.19,128.16,30.0]
[1725639975420,1.2953,128.21,128.16,30.0]
[1725639975810,1.2953,128.21,128.18,30.0]
[1725639976013,1.2953,128.21,128.17,37.47]
[1725639976909,1.2953,128.21,128.08,1.3953]
[1725639977113,13.62664787,128.2,128.11,37.47]
[1725639977311,3.9037,128.16,128.11,37.47]
[1725639977518,1.3367,128.2,128.13,37.47]
[1725639977718,8.29442691,128.19,128.11,37.47]
[1725639977922,8.29442691,128.19,128.09,41.3754]
[1725639977923,20.5838582,128.18,128.09,41.3754]
[1725639978121,20.5838582,128.17,128.09,37.47]
[1725639978323,1.3383,128.18,128.11,37.47]
[1725639978324,8.29442691,128.16,128.11,37.47]
[1725639978518,12.19822691,128.15,128.11,37.47]
[1725639978714,1.3383,128.18,128.11,37.47]
[1725639978920,20.5658852,128.17,128.09,41.3756]
[1725639979219,20.5658852,128.17,128.01,7.814]
[1725639979220,37.47,128.15,128.05,37.47]
[1725639979522,3.9055,128.1,128.05,41.3768]
[1725639979724,3.9055,128.1,128.05,3.9068]
[1725639979927,3.9052,128.11,128.06,3.9063]
[1725639980122,3.9052,128.11,128.06,41.3763]
[1725639980123,8.28082444,128.1,128.06,41.3763]
[1725639980418,2.5782,128.13,128.06,37.47]
[1725639980622,3.9053,128.11,128.06,41.3763]
[1725639980820,8.28059146,128.1,128.06,41.3763]
[1725639981020,2.5782,128.13,128.06,41.3763]
[1725639981219,3.9053,128.11,128.06,41.3763]
[1725639981428,2.5782,128.13,128.06,41.3763]
[1725639981429,8.2814675,128.1,128.06,41.3763]
[1725639981627,2.5782,128.13,128.06,41.3763]
[1725639981822,3.905,128.11,128.06,41.3763]
[1725639982017,8.2835187,128.1,128.06,37.47]
[1725639982218,2.5782,128.13,128.08,37.47]
[1725639982423,8.28273711,128.12,128.08,37.47]
[1725639982628,2.5782,128.13,128.08,37.47]
[1725639982823,3.905,128.11,128.08,41.45810236]
[1725639983824,3.905,128.11,128.01,5.18795573]
[1725639983825,2.5782,128.13,128.06,37.47]
[1725639984120,2.5782,128.13,128.06,41.3765]
[1725639984121,3.9055,128.1,128.06,41.3765]
[1725639984718,2.5782,128.13,128.03,3.9074]
[1725639984917,2.5782,128.13,128.01,5.18795573]
[1725639984918,20.55399035,128.12,128.04,37.47]
[1725639985126,20.55399035,128.11,128.04,37.47]
[1725639985322,3.9061,128.08,128.04,41.3769]
[1725639986033,3.9061,128.08,128.05,41.3768]
[1725639986324,2.5782,128.13,128.05,37.47]
[1725639986523,12.27832102,128.12,128.05,41.3766]
[1725639986723,8.28847272,128.11,128.05,37.47]
[1725639986929,8.28847272,128.1,128.05,41.3768]
[1725639987131,2.5782,128.13,128.05,41.3768]
[1725639987336,20.56942202,128.12,128.05,41.3768]
[1725639987525,8.28918613,128.11,128.01,42.65795573]
[1725639987721,3.907,128.05,128.01,42.65795573]
[1725639988328,3.89347946,128.09,128.01,42.65795573]
[1725639988526,8.28315204,128.08,128.03,37.47]
[1725639988726,8.28315204,128.07,128.03,37.47]
[1725639989227,8.28315204,128.07,128.01,5.18795573]
[1725639989228,3.83655815,128.07,128.01,3.89265573]
[1725639989429,9.65558012,128.06,127.99,37.47]
[1725639989627,3.9073,128.04,128.0,3.9082]
[1725639990225,1.3774,128.06,128.01,37.47]
[1725639991525,3.907,128.05,128.01,41.3777]
[1725639992331,3.9072,128.04,128.01,3.9077]
[1725639992526,3.9072,128.04,128.0,3.9082]
[1725639992727,2.7782,128.06,128.0,3.9082]
[1725639992934,3.9076,128.03,128.0,3.9082]
[1725639993733,2.7782,128.06,127.99,41.30773045]
[1725639994240,3.9076,128.03,128.0,3.9082]
[1725639994842,3.9076,128.03,128.01,3.83833723]
[1725639995039,3.9076,128.03,128.0,3.9082]
[1725639995528,3.9076,128.03,128.0,7.74614644]
[1725639995930,2.7782,128.06,128.01,3.908]
[1725639996136,6.71540705,128.06,128.01,3.908]
[1725639996335,2.7782,128.06,128.02,3.81801617]
[1725639996536,3.9073,128.04,128.01,3.908]
[1725639996736,3.9073,128.04,128.02,3.99699789]
[1725639997139,3.9074,128.03,128.0,41.3782]
[1725639997942,3.9074,128.03,128.0,33.9182]
[1725639998146,3.9073,128.04,128.0,33.88850078]
[1725639998643,3.9073,128.04,128.01,3.9079]
[1725639999339,3.9075,128.03,128.01,3.9079]
[1725639999550,30.01,128.06,127.95,1.3435]
[1725639999847,3.909,127.98,127.95,33.8658332]
[1725640000039,30.01,128.02,127.95,33.9197]
[1725640000243,3.9099,127.95,127.93,30.01]
[1725640000438,1.2738,128.01,127.94,3.92344511]
[1725640000846,1.2738,128.01,127.93,30.01]
[1725640001142,3.87967324,128.0,127.94,3.91]
[1725640002049,3.9091,127.98,127.94,3.91]
[1725640002442,3.9091,127.98,127.95,3.9099]
[1725640002941,1.2738,128.01,127.95,30.01]
[1725640003534,3.9088,127.99,127.95,30.01]
[1725640003737,1.2738,128.01,127.95,30.01]
[1725640004155,1.2738,128.01,127.96,30.01]
[1725640004838,1.2738,128.01,127.96,33.9194]
[1725640005947,3.9087,127.99,127.96,33.9194]
[1725640006943,31.2838,128.01,127.93,34.01082753]
[1725640007147,31.2838,128.01,127.84,1.3468]
[1725640007148,30.01,127.99,127.91,3.8898755]
[1725640007346,30.01,127.97,127.89,30.01]
[1725640007650,3.9104,127.94,127.89,33.94562035]
[1725640007943,2.7572,127.98,127.91,30.01]
[1725640008150,3.91,127.95,127.92,3.9106]
[1725640008348,3.91,127.95,127.93,3.86449679]
[1725640008648,3.91,127.95,127.93,7.77499679]
[1725640008851,2.7572,127.98,127.93,3.86449679]
[1725640009051,2.7572,127.98,127.91,30.01]
[1725640009245,3.9101,127.95,127.92,3.9106]
[1725640009452,2.7572,127.98,127.91,33.95428197]
[1725640009649,2.7572,127.98,127.93,30.01]
[1725640010151,3.9099,127.95,127.93,30.01]
[1725640011249,3.9097,127.96,127.93,33.9204]
[1725640011451,2.7572,127.98,127.93,33.9204]
[1725640011849,3.9097,127.96,127.93,33.9204]
[1725640012951,1.4071,127.98,127.93,30.01]
[1725640013351,3.9097,127.96,127.93,33.9203]
[1725640014044,3.91,127.95,127.93,30.01]
[1725640014245,3.91,127.95,127.91,33.95428197]
[1725640014444,3.91,127.95,127.91,30.01]
[1725640014747,3.91,127.95,127.91,33.91439024]
[1725640015552,3.91,127.95,127.93,3.9104]
[1725640017451,3.91,127.95,127.92,3.9106]
[1725640017651,3.91,127.95,127.91,33.91439024]
[1725640017847,3.9108,127.92,127.91,30.01]
[1725640018044,30.01,127.96,127.91,3.8449484]
[1725640018357,30.01,127.96,127.78,274.34027552]
[1725640018358,30.01,127.95,127.88,3.98103893]
[1725640018652,2.6843,127.94,127.88,3.98103893]
[1725640019047,3.9116,127.9,127.88,3.98103893]
[1725640019449,3.9112,127.91,127.88,7.89293893]
[1725640019749,2.6843,127.94,127.88,3.98103893]
[1725640020051,2.6843,127.94,127.89,30.01]
[1725640020252,2.6843,127.94,127.89,3.96930698]
[1725640020552,3.9113,127.91,127.89,3.96930698]
[1725640020945,3.9113,127.91,127.87,30.01]
[1725640020946,2.6843,127.94,127.87,30.01]
[1725640021145,2.6843,127.94,127.88,3.9118]
[1725640021854,2.6843,127.94,127.87,33.94369339]
[1725640022452,3.9109,127.92,127.89,3.9116]
[1725640023054,3.9107,127.93,127.9,3.9113]
[1725640023353,2.6843,127.94,127.87,33.94369339]
[1725640024057,3.9113,127.91,127.88,3.9118]
[1725640024457,3.9113,127.91,127.88,3.8918]
[1725640024656,3.9109,127.92,127.89,3.9117]
[1725640024958,2.6843,127.94,127.81,7.8281]
[1725640025253,30.01,127.93,127.85,30.01]
[1725640025859,3.9115,127.9,127.87,3.9123]
[1725640026155,30.01,127.93,127.87,3.9123]
[1725640026355,3.9115,127.9,127.87,3.9123]
[1725640026853,3.9115,127.9,127.88,3.912]
[1725640027060,3.9115,127.9,127.85,30.01]
[1725640027259,30.01,127.93,127.85,30.01]
[1725640027457,2.6843,127.94,127.88,30.01]
[1725640027761,3.81827457,127.93,127.88,30.01]
[1725640028161,3.81827457,127.93,127.87,30.01]
[1725640028458,3.9113,127.91,127.87,30.01]
[1725640028857,2.6843,127.94,127.87,30.01]
[1725640029054,3.9112,127.91,127.87,30.01]
[1725640029256,3.9112,127.91,127.88,3.9118]
[1725640029753,3.9116,127.9,127.87,30.01]
[1725640029958,3.9116,127.9,127.87,33.922]
[1725640030257,3.9116,127.9,127.87,30.01]
[1725640030954,2.6843,127.94,127.87,30.01]
[1725640031155,6.67871097,127.94,127.88,30.01]
[1725640031358,2.6843,127.94,127.88,30.01]
[1725640031552,3.9111,127.92,127.89,3.9115]
[1725640031953,6.64546007,127.94,127.9,4.0053642]
[1725640032149,2.6843,127.94,127.9,4.0053642]
[1725640032362,6.5719169,127.94,127.9,4.0053642]
[1725640032564,3.911,127.92,127.9,4.0053642]
[1725640032763,3.911,127.92,127.89,3.9115]
[1725640033063,2.6843,127.94,127.88,30.01]
[1725640033064,3.9111,127.91,127.88,30.01]
[1725640033269,2.6843,127.94,127.87,30.01]
[1725640033470,2.6843,127.94,127.87,33.98211909]
[1725640033772,3.911,127.92,127.89,3.9115]
[1725640034170,3.911,127.92,127.9,3.9114]
[1725640034675,30.01,127.96,127.88,30.01]
[1725640034967,3.91734743,127.96,127.88,30.01]
[1725640035173,3.9106,127.93,127.88,30.01]
[1725640035365,3.9106,127.93,127.9,3.9112]
[1725640035771,3.9103,127.94,127.88,30.01]
[1725640036076,3.82814787,127.96,127.88,30.01]
[1725640036474,3.9102,127.94,127.88,30.01]
[1725640036869,3.9102,127.94,127.91,3.9109]
[1725640037673,3.9107,127.93,127.88,30.01]
[1725640038272,3.9109,127.92,127.89,3.9116]
[1725640039580,30.01,127.91,127.84,1.3468]
[1725640039772,31.4173,127.91,127.84,5.34841767]
[1725640039970,31.4173,127.91,127.85,30.01]
[1725640039971,1.4073,127.91,127.85,30.01]
[1725640040171,30.01,127.94,127.85,30.01]
[1725640040371,30.01,127.94,127.87,30.01]
[1725640040571,3.911,127.92,127.89,3.9117]
[1725640040874,30.01,127.96,127.89,3.9117]
[1725640041073,3.9109,127.92,127.89,3.9117]
[1725640041382,30.01,127.96,127.87,30.01]
[1725640041765,3.911,127.92,127.87,30.01]
[1725640042377,3.9112,127.91,127.88,3.9118]
[1725640042581,30.01,127.94,127.87,30.01]
[1725640042882,3.9116,127.9,127.87,33.9222]
[1725640043176,30.01,127.94,127.87,30.01]
[1725640043375,3.9109,127.92,127.89,3.9116]
[1725640043976,30.01,127.96,127.89,30.01]
[1725640044778,3.9108,127.93,127.89,33.9215]
[1725640044979,3.9108,127.93,127.89,30.01]
[1725640045278,3.9108,127.93,127.9,3.9114]
[1725640045478,3.9108,127.93,127.91,3.830104]
[1725640046077,3.9108,127.93,127.9,3.9114]
[1725640047777,3.9108,127.92,127.89,33.9216]
[1725640047978,30.01,127.96,127.87,30.01]
[1725640048479,30.01,127.94,127.85,30.01]
[1725640049274,30.01,127.94,127.85,34.01083534]
[1725640049879,3.9116,127.9,127.87,3.9122]
[1725640050579,3.9113,127.91,127.88,3.912]
[1725640050978,7.8194,127.96,127.85,34.01083534]
[1725640051182,30.01,127.95,127.87,3.9121]
[1725640051376,30.01,127.95,127.85,34.01083534]
[1725640051583,3.9114,127.9,127.87,3.9121]
[1725640052077,30.01,127.94,127.86,3.9125]
[1725640052282,30.01,127.94,127.85,34.01083534]
[1725640052487,1.3208,127.93,127.85,34.01083534]
[1725640052782,3.9118,127.89,127.86,3.9125]
[1725640053282,30.01,127.92,127.85,4.00083534]
[1725640053484,30.01,127.9,127.82,30.01]
[1725640053677,3.9126,127.87,127.83,3.9134]
[1725640053877,34.01521726,127.9,127.83,3.9134]
[1725640054582,3.9126,127.87,127.83,3.9134]
[1725640054980,3.9126,127.87,127.82,33.92522117]
[1725640055187,3.9122,127.88,127.84,30.01]
[1725640055888,3.9122,127.88,127.84,33.91526728]
[1725640056187,3.9122,127.88,127.85,3.9128]
[1725640058084,3.9122,127.88,127.84,33.91526728]
[1725640058085,3.9122,127.88,127.86,3.9125]
[1725640058289,3.9122,127.88,127.84,33.91526728]
[1725640058586,3.9126,127.86,127.84,33.91526728]
[1725640058787,1.3159,127.91,127.84,33.91526728]
[1725640059183,3.9125,127.87,127.84,37.82826728]
[1725640059584,1.3159,127.91,127.84,33.91526728]
[1725640059786,1.3159,127.91,127.84,37.82836728]
[1725640059986,4.0000436,127.9,127.84,37.82836728]
[1725640060382,3.9125,127.87,127.84,37.82836728]
[1725640060578,30.01,127.9,127.81,5.2014]
[1725640060887,33.95487328,127.9,127.81,33.924]
[1725640061091,33.95487328,127.9,127.82,3.9138]
[1725640061277,33.95487328,127.9,127.83,3.91161458]
[1725640061891,30.01,127.88,127.81,30.01]
[1725640062085,1.4031,127.87,127.76,1.2833]
[1725640062385,1.4031,127.87,127.79,30.01]
[1725640062386,3.9139,127.82,127.79,30.01]
[1725640062586,1.4008,127.86,127.79,30.01]
[1725640062985,3.9137,127.83,127.79,37.80172926]
[1725640063683,3.94487328,127.9,127.81,30.01]
[1725640063989,3.94487328,127.9,127.85,30.01]
[1725640063990,3.86890837,127.9,127.85,30.01]
[1725640064384,3.9122,127.88,127.85,30.01]
[1725640064583,3.86890837,127.9,127.85,30.01]
[1725640064785,3.9123,127.88,127.85,30.01]
[1725640065185,2.6509,127.92,127.85,30.01]
[1725640065391,3.9117,127.89,127.86,3.9126]
[1725640065584,3.9117,127.89,127.85,30.01]
[1725640065794,6.5095968,127.92,127.85,30.01]
[1725640066104,30.01,127.89,127.81,3.85716424]
[1725640066387,30.01,127.87,127.79,30.01]
[1725640066588,3.914,127.82,127.79,33.97514361]
[1725640067188,3.9142,127.81,127.79,3.96514361]
[1725640067385,3.9142,127.81,127.77,33.9252]
[1725640067783,3.914,127.82,127.78,3.9151]
[1725640068487,3.9142,127.81,127.77,37.92723038]
[1725640068696,3.8320851,127.82,127.77,3.82934566]
[1725640068989,30.01,127.84,127.75,30.01]
[1725640069384,33.99986802,127.84,127.76,3.89979444]
[1725640069987,3.9148,127.79,127.76,3.89979444]
[1725640070488,30.01,127.82,127.73,33.9264]
[1725640070689,30.01,127.82,127.73,30.01]
[1725640071195,30.01,127.82,127.74,3.90841017]
[1725640071395,3.9153,127.78,127.74,3.90841017]
[1725640071592,3.9153,127.78,127.73,30.01]
[1725640071788,30.01,127.82,127.73,30.01]
[1725640071986,30.01,127.8,127.73,3.91889917]
[1725640072283,1.3043,127.85,127.61,37.8504]
[1725640072284,4.0074,127.79,127.61,37.8504]
[1725640072488,3.9162,127.75,127.7,33.9273]
[1725640072684,3.9162,127.75,127.71,3.93926522]
[1725640072888,3.9162,127.75,127.7,30.01]
[1725640073090,3.9158,127.76,127.71,30.01]
[1725640073599,3.9158,127.76,127.72,7.86086508]
[1725640073994,3.9162,127.75,127.7,30.01]
[1725640074190,33.88738374,127.78,127.71,7.79879195]
[1725640074496,3.9162,127.75,127.71,7.79879195]
[1725640074699,33.88738374,127.78,127.71,3.88169195]
[1725640075097,3.9164,127.74,127.71,3.88169195]
[1725640075294,3.87738374,127.78,127.72,30.01]
[1725640075596,34.0174,127.79,127.72,33.8538284]
[1725640075799,3.9154,127.77,127.72,33.8538284]
[1725640075999,3.9154,127.77,127.72,37.7706284]
[1725640076301,34.0174,127.79,127.72,33.8538284]
[1725640076595,4.0074,127.79,127.72,33.8538284]
[1725640076794,3.9153,127.78,127.72,33.8538284]
[1725640077097,3.9153,127.78,127.74,3.9161]
[1725640077297,3.9154,127.78,127.74,3.9161]
[1725640077491,4.0074,127.79,127.74,3.9161]
[1725640077692,4.0074,127.79,127.75,3.9158]
[1725640078094,144.23693096,127.85,127.75,33.86753817]
[1725640078300,4.0165,127.84,127.75,33.86753817]
[1725640078593,3.9146,127.8,127.75,33.86753817]
[1725640078794,3.9146,127.8,127.76,3.9155]
[1725640079591,3.9146,127.8,127.75,33.86753817]
[1725640079592,3.9143,127.81,127.77,3.9153]
[1725640079794,4.0165,127.84,127.77,30.01]
[1725640080099,4.0165,127.84,127.78,3.9149]
[1725640080299,34.0265,127.84,127.75,33.86753817]
[1725640080890,3.914,127.82,127.75,33.86753817]
[1725640081092,3.914,127.82,127.79,3.9146]
[1725640081602,4.0165,127.84,127.8,3.9143]
[1725640082191,4.0165,127.84,127.78,30.01]
[1725640082192,4.0165,127.84,127.79,3.9147]
[1725640082397,4.0165,127.84,127.78,30.01]
[1725640082593,3.9148,127.79,127.75,3.85753817]
[1725640082798,4.0165,127.84,127.69,86.75002603]
[1725640082799,30.01,127.81,127.73,30.01]
[1725640082997,30.01,127.8,127.73,30.01]
[1725640083197,30.01,127.8,127.72,3.9168]
[1725640083397,30.01,127.78,127.72,3.9168]
[1725640083603,3.9159,127.76,127.72,7.74920996]
[1725640083996,4.0086,127.77,127.72,3.83240996]
[1725640084201,4.0086,127.77,127.72,37.63]
[1725640084403,4.0086,127.77,127.73,3.82301392]
[1725640084605,4.0086,127.77,127.74,3.9161]
[1725640084904,3.9158,127.76,127.73,3.82301392]
[1725640085499,4.0086,127.77,127.68,37.63]
[1725640085500,41.6386,127.77,127.68,37.63]
[1725640086000,3.9162,127.75,127.71,3.9171]
[1725640086401,4.0086,127.77,127.7,3.9174]
[1725640086601,3.9165,127.74,127.7,3.9174]
[1725640087205,3.9165,127.74,127.71,7.83788783]
[1725640087603,3.9165,127.74,127.71,3.9172]
[1725640088103,4.0086,127.77,127.7,3.9174]
[1725640088708,3.9165,127.74,127.7,3.9174]
[1725640088905,41.6386,127.77,127.68,37.63]
[1725640089106,4.0086,127.77,127.68,37.63]
[1725640089513,3.9168,127.73,127.69,3.9177]
[1725640090514,37.63,127.76,127.68,3.9181]
[1725640090711,37.63,127.76,127.66,37.63]
[1725640091113,3.9171,127.72,127.68,3.9179]
[1725640091615,3.9173,127.71,127.68,3.9179]
[1725640091813,3.9173,127.71,127.69,3.9178]
[1725640093911,37.63,127.76,127.66,37.63]
[1725640094111,4.0086,127.77,127.65,37.63]
[1725640094112,37.63,127.73,127.65,37.63]
[1725640094411,37.63,127.73,127.64,3.92013853]
[1725640095108,3.9184,127.68,127.64,7.83933853]
[1725640095409,3.9184,127.68,127.64,3.92013853]
[1725640095613,3.9176,127.7,127.67,3.9184]
[1725640096010,4.0086,127.77,127.68,37.63]
[1725640096209,3.9169,127.72,127.69,3.9177]
[1725640096515,4.0086,127.77,127.68,37.63]
[1725640096708,37.63,127.76,127.68,37.63]
[1725640096903,37.63,127.76,127.66,37.63]
[1725640097108,37.63,127.75,127.66,37.63]
[1725640097322,3.9175,127.71,127.67,3.9183]
[1725640098016,3.9171,127.72,127.66,37.63]
[1725640098205,41.6386,127.77,127.66,37.63]
[1725640098604,41.6386,127.77,127.68,3.9179]
[1725640098911,37.63,127.74,127.66,37.63]
[1725640099115,37.63,127.74,127.66,41.5485]
[1725640099313,37.63,127.74,127.66,37.63]
[1725640099505,37.63,127.76,127.68,37.63]
[1725640099711,4.0086,127.77,127.64,3.92013853]
[1725640099919,4.0086,127.77,127.69,37.63]
[1725640100214,3.9165,127.74,127.7,3.9175]
[1725640100516,4.0086,127.77,127.7,3.9175]
[1725640101505,3.9167,127.73,127.7,3.9175]
[1725640102217,3.9165,127.74,127.7,3.9175]
[1725640103218,3.9169,127.73,127.69,3.9178]
[1725640103716,3.9169,127.73,127.67,37.63]
[1725640104810,3.9169,127.73,127.7,3.9175]
[1725640105812,3.9165,127.74,127.67,37.63]
[1725640106013,3.9165,127.74,127.7,30.1]
[1725640106220,4.0086,127.77,127.71,3.91299005]
[1725640106411,34.1086,127.77,127.68,30.1]
[1725640107117,3.9165,127.74,127.7,3.9173]
[1725640107314,34.1086,127.77,127.7,3.9173]
[1725640107710,3.9165,127.74,127.7,3.9173]
[1725640108713,3.9165,127.74,127.71,3.9172]
[1725640109522,3.9165,127.74,127.71,7.75897118]
[1725640110220,3.9165,127.74,127.71,3.9172]
[1725640110421,30.1,127.75,127.66,30.1]
[1725640110620,30.1,127.73,127.65,30.1]
[1725640110819,3.9176,127.7,127.66,3.9187]
[1725640112121,3.9173,127.71,127.67,3.9184]
[1725640112322,3.9173,127.71,127.64,3.92013853]
[1725640112323,34.1086,127.77,127.68,30.1]
[1725640112827,34.1086,127.77,127.7,3.9173]
[1725640113525,3.9165,127.74,127.7,3.9173]
[1725640114020,34.1086,127.77,127.68,30.1]
[1725640114021,34.1086,127.77,127.69,3.9178]
[1725640114229,34.1086,127.77,127.64,3.92013853]
[1725640114230,30.1,127.75,127.67,30.1]
[1725640114527,30.1,127.73,127.67,3.9184]
[1725640114718,3.9175,127.71,127.67,3.9184]
[1725640115622,30.1,127.74,127.67,30.1]
[1725640116018,3.9171,127.72,127.68,3.918]
[1725640116622,3.9173,127.71,127.67,34.0183]
[1725640116817,30.1,127.74,127.67,30.1]
[1725640117022,30.1,127.76,127.67,30.1]
[1725640117223,34.1086,127.77,127.68,30.1]
[1725640117821,3.9161,127.75,127.71,3.917]
[1725640118117,3.9161,127.75,127.71,3.93711286]
[1725640118322,3.9161,127.75,127.68,30.1]
[1725640118527,3.9161,127.75,127.71,3.917]
[1725640118719,3.9166,127.73,127.68,30.1]
[1725640119125,3.9166,127.73,127.7,3.9174]
[1725640119316,3.9164,127.74,127.71,3.93045175]
[1725640119522,3.9164,127.74,127.68,30.1]
[1725640120025,3.9164,127.74,127.71,3.917]
[1725640120225,3.9164,127.74,127.72,3.94730046]
[1725640120421,3.9161,127.75,127.72,3.94730046]
[1725640120622,4.0086,127.77,127.72,3.9169]
[1725640120926,4.0086,127.77,127.72,7.89382873]
[1725640121822,3.9161,127.75,127.72,7.89382873]
[1725640122228,3.9161,127.75,127.72,3.97692873]
[1725640122427,4.0086,127.77,127.72,3.97692873]
[1725640122627,4.0086,127.77,127.7,30.1]
[1725640122929,3.9162,127.75,127.7,30.1]
[1725640123228,2.697,127.77,127.71,3.96243441]
[1725640123423,3.9165,127.74,127.71,3.96243441]
[1725640123826,2.697,127.77,127.71,3.96243441]
[1725640124027,30.1,127.76,127.68,31.4719]
[1725640124333,1.3359,127.76,127.68,31.4719]
[1725640124630,3.9163,127.75,127.71,3.9171]
[1725640124829,3.9163,127.75,127.71,7.73772509]
[1725640125330,3.9163,127.75,127.72,3.9169]
[1725640130239,2.697,127.77,127.71,3.82062509]
[1725640130541,2.697,127.77,127.69,30.1]
[1725640130835,3.9168,127.73,127.7,3.9174]
[1725640131034,3.9168,127.73,127.71,3.99016857]
[1725640131630,30.1,127.76,127.71,3.99016857]
[1725640131837,30.1,127.76,127.69,30.1]
[1725640132040,3.9165,127.74,127.7,3.9174]
[1725640132335,30.1,127.76,127.71,3.94511512]
[1725640132529,30.1,127.76,127.7,3.9174]
[1725640132730,3.9166,127.74,127.7,3.9174]
[1725640132934,30.1,127.76,127.7,3.9174]
[1725640133134,30.1,127.76,127.71,3.82327492]
[1725640133438,3.9166,127.73,127.71,3.82327492]
[1725640133738,3.9166,127.73,127.69,34.0177]
[1725640134134,3.9166,127.73,127.69,30.1]
[1725640134528,30.1,127.76,127.69,30.1]
[1725640135139,3.9165,127.74,127.71,3.9171]
[1725640135637,3.9165,127.74,127.71,7.81049893]
[1725640136136,30.1,127.76,127.71,3.89339893]
[1725640136338,31.495,127.76,127.7,3.9173]
[1725640136842,30.1,127.75,127.67,30.1]
[1725640137038,30.1,127.75,127.65,30.1]
[1725640138133,30.1,127.75,127.61,1.3604]
[1725640138134,1.395,127.76,127.69,30.1]
[1725640138637,1.395,127.76,127.7,3.9173]
[1725640139133,3.9168,127.73,127.7,3.9173]
[1725640139739,3.9169,127.72,127.69,34.0177]
[1725640139942,1.395,127.76,127.69,34.0177]
[1725640140441,3.9168,127.73,127.7,3.9174]
[1725640141230,1.395,127.76,127.69,30.1]
[1725640141747,3.9168,127.73,127.7,3.9173]
[1725640143034,30.1,127.75,127.67,30.1]
[1725640143642,3.9171,127.72,127.68,3.9179]
[1725640144143,3.9174,127.71,127.68,3.9179]
[1725640144336,3.9174,127.71,127.62,7.8397]
[1725640144337,30.1,127.74,127.65,30.1]
[1725640144742,3.9176,127.7,127.67,3.9184]
[1725640146139,3.9175,127.71,127.67,30.1]
[1725640146346,1.395,127.76,127.69,30.1]
[1725640146646,3.9171,127.72,127.69,34.0177]
[1725640147041,1.395,127.76,127.69,30.1]
[1725640147337,1.395,127.76,127.7,30.1]
[1725640147542,1.395,127.76,127.71,3.94260068]